[Event "*** Titled Tuesday Blitz"]
[Site "Chess.com"]
[Date "2019.11.05"]
[Round "9"]
[White "raswi"]
[Black "przemekpiotrowski"]
[Result "0-1"]
[WhiteElo "2227"]
[BlackElo "2421"]
[TimeControl "180+2"]
[EndTime "15:10:17 PST"]
[Termination "przemekpiotrowski won by resignation"]

1. e4 {[%clk 0:03:00.9]} 1... c5 {[%clk 0:03:00.6]} 2. Nf3 {[%clk 0:03:01.7]}
2... Nc6 {[%clk 0:03:01.7]} 3. d4 {[%clk 0:03:03.3]} 3... cxd4 {[%clk
0:03:03.2]} 4. Nxd4 {[%clk 0:03:04.9]} 4... Nf6 {[%clk 0:03:04.8]} 5. Nc3 {[%clk
0:03:06.2]} 5... d6 {[%clk 0:03:06.2]} 6. Bg5 {[%clk 0:03:06.4]} 6... e6 {[%clk
0:03:07.3]} 7. Qd2 {[%clk 0:03:07.3]} 7... a6 {[%clk 0:03:08.8]} 8. O-O-O {[%clk
0:03:06.5]} 8... Bd7 {[%clk 0:03:10.3]} 9. f4 {[%clk 0:03:04.5]} 9... b5 {[%clk
0:03:11.4]} 10. Bxf6 {[%clk 0:03:05.7]} 10... gxf6 {[%clk 0:03:12.4]} 11. Nxc6
{[%clk 0:02:58.6]} 11... Bxc6 {[%clk 0:03:14.3]} 12. f5 {[%clk 0:03:00.1]} 12...
h5 {[%clk 0:02:58.4]} 13. Kb1 {[%clk 0:02:59.2]} 13... b4 {[%clk 0:02:53.2]} 14.
Ne2 {[%clk 0:02:58.7]} 14... e5 {[%clk 0:02:54.6]} 15. Qxb4 {[%clk 0:02:13.7]}
15... Rb8 {[%clk 0:02:53.3]} 16. Qd2 {[%clk 0:02:04.6]} 16... Bxe4 {[%clk
0:02:30.5]} 17. Nc3 {[%clk 0:02:05.2]} 17... Bxf5 {[%clk 0:02:27.5]} 18. Bxa6
{[%clk 0:01:37.6]} 18... Qa5 {[%clk 0:02:06.5]} 19. Bc4 {[%clk 0:01:23.9]} 19...
Be6 {[%clk 0:01:51.1]} 20. Bb3 {[%clk 0:01:21]} 20... Rd8 {[%clk 0:01:40.6]} 21.
Rhf1 {[%clk 0:01:18.8]} 21... Bh6 {[%clk 0:01:36.5]} 22. Qd3 {[%clk 0:01:18.2]}
22... f5 {[%clk 0:01:35.3]} 23. Nd5 {[%clk 0:01:05]} 23... f4 {[%clk 0:00:58.2]}
24. Nf6+ {[%clk 0:00:59.1]} 24... Ke7 {[%clk 0:00:58]} 25. Nd5+ {[%clk 0:00:58]}
25... Bxd5 {[%clk 0:00:42.1]} 26. Bxd5 {[%clk 0:00:58.3]} 26... Kf6 {[%clk
0:00:43.1]} 27. g3 {[%clk 0:00:57.5]} 27... Rdg8 {[%clk 0:00:39.8]} 28. Bb3
{[%clk 0:00:54.8]} 28... Qc5 {[%clk 0:00:37.9]} 29. Qa6 {[%clk 0:00:36]} 29...
Rd8 {[%clk 0:00:36.5]} 30. Qb7 {[%clk 0:00:33.8]} 30... Rhf8 {[%clk 0:00:34.6]}
31. gxf4 {[%clk 0:00:33.5]} 31... Bxf4 {[%clk 0:00:35.1]} 32. Rde1 {[%clk
0:00:21]} 32... d5 {[%clk 0:00:30.4]} 33. Rd1 {[%clk 0:00:16.5]} 33... d4 {[%clk
0:00:29.7]} 34. Qe4 {[%clk 0:00:16.7]} 34... Qc8 {[%clk 0:00:18.1]} 35. Rde1
{[%clk 0:00:17.3]} 35... Qf5 {[%clk 0:00:16.6]} 36. Qc6+ {[%clk 0:00:16.5]}
36... Kg7 {[%clk 0:00:17.5]} 37. Rg1+ {[%clk 0:00:17.7]} 37... Kh7 {[%clk
0:00:17.2]} 38. Qf3 {[%clk 0:00:11.1]} 38... Rg8 {[%clk 0:00:17.1]} 39. Bd5
{[%clk 0:00:11.6]} 39... Kh6 {[%clk 0:00:12.7]} 40. Be4 {[%clk 0:00:12]} 40...
Qf6 {[%clk 0:00:13.8]} 41. Rgf1 {[%clk 0:00:08.4]} 41... Rg5 {[%clk 0:00:14]}
42. h4 {[%clk 0:00:08.5]} 42... Rg4 {[%clk 0:00:14.2]} 43. Qd3 {[%clk 0:00:04]}
43... Rdg8 {[%clk 0:00:14.9]} 44. a3 {[%clk 0:00:04.1]} 44... Rxh4 {[%clk
0:00:16.1]} 45. Bd5 {[%clk 0:00:03.8]} 45... Rh2 {[%clk 0:00:16.5]} 46. Qc4
{[%clk 0:00:03.1]} 46... Rg7 {[%clk 0:00:16.6]} 47. Rg1 {[%clk 0:00:03.2]} 47...
Rxg1 {[%clk 0:00:16]} 48. Rxg1 {[%clk 0:00:04.3]} 48... Be3 {[%clk 0:00:16.3]}
49. Rd1 {[%clk 0:00:03.6]} 49... Rf2 {[%clk 0:00:17.4]} 50. Qc8 {[%clk
0:00:03.1]} 50... Kh7 {[%clk 0:00:17.1]} 51. Be4+ {[%clk 0:00:04]} 51... Kg7
{[%clk 0:00:15.4]} 52. Rg1+ {[%clk 0:00:04.7]} 52... Bg5 {[%clk 0:00:16.5]} 53.
Qh3 {[%clk 0:00:03.4]} 53... h4 {[%clk 0:00:16.3]} 54. Qg4 {[%clk 0:00:02.6]}
54... Rf1+ {[%clk 0:00:17.4]} 55. Rxf1 {[%clk 0:00:03.1]} 55... Qxf1+ {[%clk
0:00:19.3]} 56. Ka2 {[%clk 0:00:04.5]} 56... Qf6 {[%clk 0:00:20.4]} 57. Qh5
{[%clk 0:00:03.9]} 57... Qh6 {[%clk 0:00:20.9]} 58. Qg4 {[%clk 0:00:05]} 58...
h3 {[%clk 0:00:17.7]} 59. Qf5 {[%clk 0:00:06.5]} 59... h2 {[%clk 0:00:17.4]} 60.
Qxe5+ {[%clk 0:00:07.4]} 60... Bf6 {[%clk 0:00:17.6]} 61. Qg3+ {[%clk
0:00:08.4]} 61... Kf8 {[%clk 0:00:18.2]} 62. Qb8+ {[%clk 0:00:08.1]} 62... Kg7
{[%clk 0:00:19.1]} 63. Qg3+ {[%clk 0:00:08.7]} 63... Bg5 {[%clk 0:00:20.6]} 64.
a4 {[%clk 0:00:03.8]} 64... Qe6+ {[%clk 0:00:20.7]} 65. b3 {[%clk 0:00:03.3]}
65... f6 {[%clk 0:00:19.7]} 66. Bh1 {[%clk 0:00:03.4]} 66... d3 {[%clk
0:00:16.1]} 67. Qxh2 {[%clk 0:00:03.7]} 67... Qe2 {[%clk 0:00:16.5]} 68. Qc7+
{[%clk 0:00:03.3]} 68... Kh6 {[%clk 0:00:17.8]} 69. Bd5 {[%clk 0:00:02.6]} 69...
Qxc2+ {[%clk 0:00:14.9]} 70. Qxc2 {[%clk 0:00:03]} 70... dxc2 {[%clk 0:00:16.8]}
0-1

[Event "*** Titled Tuesday Blitz"]
[Site "Chess.com"]
[Date "2019.11.05"]
[Round "9"]
[White "ChessBitl"]
[Black "13MiRacLe"]
[Result "1-0"]
[WhiteElo "2370"]
[BlackElo "2576"]
[TimeControl "180+2"]
[EndTime "15:11:24 PST"]
[Termination "ChessBitl won by resignation"]

1. e4 {[%clk 0:03:01.2]} 1... e5 {[%clk 0:02:57]} 2. Nf3 {[%clk 0:03:01.6]} 2...
Nc6 {[%clk 0:02:58.4]} 3. d4 {[%clk 0:03:02.9]} 3... exd4 {[%clk 0:02:59.1]} 4.
Bc4 {[%clk 0:03:04.5]} 4... Nf6 {[%clk 0:03:00.1]} 5. O-O {[%clk 0:03:05.2]}
5... Nxe4 {[%clk 0:03:00.6]} 6. Re1 {[%clk 0:03:06.7]} 6... d5 {[%clk
0:03:02.5]} 7. Bxd5 {[%clk 0:03:07.9]} 7... Qxd5 {[%clk 0:03:04.2]} 8. Nc3
{[%clk 0:03:09.4]} 8... Qa5 {[%clk 0:03:05.2]} 9. Nxe4 {[%clk 0:03:10.3]} 9...
Be6 {[%clk 0:03:04.6]} 10. Bd2 {[%clk 0:03:11.6]} 10... Qd5 {[%clk 0:03:05]} 11.
Bg5 {[%clk 0:03:10.4]} 11... Bd6 {[%clk 0:03:01.6]} 12. c4 {[%clk 0:03:07.7]}
12... Qxc4 {[%clk 0:02:51.5]} 13. Nxd6+ {[%clk 0:03:06.7]} 13... cxd6 {[%clk
0:02:51.7]} 14. Re4 {[%clk 0:02:56.9]} 14... O-O {[%clk 0:02:41.6]} 15. Nxd4
{[%clk 0:02:57.2]} 15... Nxd4 {[%clk 0:02:42.6]} 16. Rxd4 {[%clk 0:02:56.9]}
16... Qb5 {[%clk 0:02:44.1]} 17. Bf4 {[%clk 0:02:50.8]} 17... Qxb2 {[%clk
0:02:42.2]} 18. Rxd6 {[%clk 0:02:41.8]} 18... Rac8 {[%clk 0:02:34.7]} 19. Rd2
{[%clk 0:02:30.1]} 19... Qf6 {[%clk 0:02:25.3]} 20. Be3 {[%clk 0:02:30.8]} 20...
a6 {[%clk 0:02:25.7]} 21. a4 {[%clk 0:02:29.1]} 21... b5 {[%clk 0:02:22]} 22.
Rd6 {[%clk 0:02:23.7]} 22... Rfd8 {[%clk 0:02:17.1]} 23. Rxd8+ {[%clk
0:02:09.3]} 23... Rxd8 {[%clk 0:02:19]} 24. Qc1 {[%clk 0:02:03.7]} 24... Bb3
{[%clk 0:02:19.2]} 25. axb5 {[%clk 0:02:00.4]} 25... axb5 {[%clk 0:01:11.5]} 26.
Qa3 {[%clk 0:01:55.1]} 26... Bc4 {[%clk 0:00:45.3]} 27. Rc1 {[%clk 0:01:50.1]}
27... h6 {[%clk 0:00:45.8]} 28. h3 {[%clk 0:01:44.7]} 28... Qf5 {[%clk
0:00:46.4]} 29. Qc5 {[%clk 0:01:40]} 29... Qe4 {[%clk 0:00:44.4]} 30. Qc7 {[%clk
0:01:34]} 30... Re8 {[%clk 0:00:42.9]} 31. Re1 {[%clk 0:01:28.8]} 31... Bd5
{[%clk 0:00:31.8]} 32. Qg3 {[%clk 0:01:28.5]} 32... Qd3 {[%clk 0:00:25.8]} 33.
Rc1 {[%clk 0:01:19.9]} 33... Re6 {[%clk 0:00:23.9]} 34. Qf4 {[%clk 0:01:03.8]}
34... Rg6 {[%clk 0:00:19.7]} 35. g4 {[%clk 0:01:03.6]} 35... Rf6 {[%clk
0:00:19.6]} 36. Qe5 {[%clk 0:01:02.1]} 36... Bc4 {[%clk 0:00:15.6]} 37. Qd4
{[%clk 0:01:00.3]} 37... Qe2 {[%clk 0:00:12.2]} 38. Qe4 {[%clk 0:00:49.6]} 38...
Re6 {[%clk 0:00:10]} 39. Qf4 {[%clk 0:00:46.5]} 39... Rf6 {[%clk 0:00:06.7]} 40.
Qe4 {[%clk 0:00:46.8]} 40... Rg6 {[%clk 0:00:08.2]} 41. Ra1 {[%clk 0:00:45.4]}
41... Kh7 {[%clk 0:00:08.9]} 42. Kh2 {[%clk 0:00:42]} 42... Qd3 {[%clk
0:00:04.9]} 43. Qxd3 {[%clk 0:00:39.9]} 43... Bxd3 {[%clk 0:00:06.8]} 44. Rd1
{[%clk 0:00:39.3]} 44... Bc4 {[%clk 0:00:08.1]} 45. Rd7 {[%clk 0:00:39.5]} 45...
Ra6 {[%clk 0:00:07.9]} 46. Rb7 {[%clk 0:00:39.9]} 46... Kg6 {[%clk 0:00:08.8]}
47. Kg3 {[%clk 0:00:41]} 47... f6 {[%clk 0:00:09.8]} 48. h4 {[%clk 0:00:41.9]}
48... Ra3 {[%clk 0:00:06.9]} 49. h5+ {[%clk 0:00:42.7]} 49... Kh7 {[%clk
0:00:08.5]} 50. Kf4 {[%clk 0:00:43.4]} 50... Ra4 {[%clk 0:00:09.7]} 51. Kg3
{[%clk 0:00:43.9]} 51... Be6 {[%clk 0:00:09.5]} 52. f3 {[%clk 0:00:44]} 52...
Ra3 {[%clk 0:00:11]} 53. Kf4 {[%clk 0:00:44.6]} 53... Bd5 {[%clk 0:00:10.4]} 54.
Rxb5 {[%clk 0:00:43.2]} 54... Ra4+ {[%clk 0:00:11.8]} 55. Kg3 {[%clk 0:00:43.4]}
55... Bc6 {[%clk 0:00:12.9]} 56. Rb6 {[%clk 0:00:44.2]} 56... Bd5 {[%clk
0:00:14.1]} 57. Rb5 {[%clk 0:00:44.3]} 57... Bc6 {[%clk 0:00:15.3]} 58. Rc5
{[%clk 0:00:45]} 58... Ba8 {[%clk 0:00:15.8]} 59. Rc3 {[%clk 0:00:45.3]} 59...
Ra1 {[%clk 0:00:16.5]} 60. Rb3 {[%clk 0:00:45.9]} 60... Rf1 {[%clk 0:00:16.5]}
61. Bf2 {[%clk 0:00:46.6]} 61... Rd1 {[%clk 0:00:15.3]} 62. Kg2 {[%clk
0:00:46.7]} 62... Rc1 {[%clk 0:00:14]} 63. Kg3 {[%clk 0:00:47.7]} 63... Rc2
{[%clk 0:00:14.8]} 64. Ra3 {[%clk 0:00:46.6]} 64... Bc6 {[%clk 0:00:15.3]} 65.
Re3 {[%clk 0:00:46.5]} 65... Rc4 {[%clk 0:00:16.1]} 66. Ra3 {[%clk 0:00:46.1]}
66... Kg8 {[%clk 0:00:16.8]} 67. Be3 {[%clk 0:00:47.1]} 67... Kf7 {[%clk
0:00:17.6]} 68. Bf4 {[%clk 0:00:48.2]} 68... Ke6 {[%clk 0:00:16.8]} 69. Re3+
{[%clk 0:00:48.2]} 69... Kd5 {[%clk 0:00:16.7]} 70. Rd3+ {[%clk 0:00:48.7]}
70... Ke6 {[%clk 0:00:16.7]} 71. Rd6+ {[%clk 0:00:48.4]} 71... Kf7 {[%clk
0:00:16.3]} 72. Rd1 {[%clk 0:00:49.5]} 72... Rc3 {[%clk 0:00:16.4]} 73. Rf1
{[%clk 0:00:48.7]} 73... f5 {[%clk 0:00:17.6]} 74. Be5 {[%clk 0:00:45.1]} 74...
Rd3 {[%clk 0:00:17.9]} 75. gxf5 {[%clk 0:00:44.8]} 75... Bd7 {[%clk 0:00:13.3]}
76. Kf4 {[%clk 0:00:44.6]} 76... Bc6 {[%clk 0:00:13.7]} 77. Rf2 {[%clk
0:00:41.2]} 77... Bd5 {[%clk 0:00:14.6]} 78. Bb2 {[%clk 0:00:41.4]} 78... Bc6
{[%clk 0:00:14.6]} 79. Bc1 {[%clk 0:00:42.1]} 79... Bb7 {[%clk 0:00:14.2]} 80.
Be3 {[%clk 0:00:42.9]} 80... Rb3 {[%clk 0:00:11.6]} 81. Rd2 {[%clk 0:00:42.7]}
81... Rb4+ {[%clk 0:00:12.9]} 82. Kg3 {[%clk 0:00:43.1]} 82... Bc6 {[%clk
0:00:14.4]} 83. Rd6 {[%clk 0:00:42.8]} 83... Rc4 {[%clk 0:00:15.8]} 84. Bd4
{[%clk 0:00:40.8]} 84... Ke7 {[%clk 0:00:13.9]} 85. Be5 {[%clk 0:00:36]} 85...
Rc5 {[%clk 0:00:15.3]} 86. f4 {[%clk 0:00:36.8]} 86... Kf7 {[%clk 0:00:12.9]}
87. Rg6 {[%clk 0:00:36.7]} 87... Be4 {[%clk 0:00:07.7]} 88. Rxg7+ {[%clk
0:00:37.1]} 88... Kf8 {[%clk 0:00:09.1]} 89. f6 {[%clk 0:00:38.2]} 89... Rc1
{[%clk 0:00:09.9]} 90. Bd6+ {[%clk 0:00:37.7]} 90... Ke8 {[%clk 0:00:09.3]} 91.
f7+ {[%clk 0:00:39]} 1-0

[Event "*** Titled Tuesday Blitz"]
[Site "Chess.com"]
[Date "2019.11.05"]
[Round "9"]
[White "Galileo22"]
[Black "Vasily85"]
[Result "1-0"]
[WhiteElo "2410"]
[BlackElo "2220"]
[TimeControl "180+2"]
[EndTime "15:11:31 PST"]
[Termination "Galileo22 won by resignation"]

1. d4 {[%clk 0:03:01.6]} 1... Nf6 {[%clk 0:03:00.6]} 2. Nf3 {[%clk 0:03:02]}
2... e6 {[%clk 0:03:02.1]} 3. c4 {[%clk 0:03:02.3]} 3... Bb4+ {[%clk 0:03:00.5]}
4. Bd2 {[%clk 0:03:02.2]} 4... a5 {[%clk 0:03:01.8]} 5. g3 {[%clk 0:02:51.9]}
5... b6 {[%clk 0:03:02.5]} 6. Bg2 {[%clk 0:02:52.5]} 6... Bb7 {[%clk 0:03:03.8]}
7. O-O {[%clk 0:02:52.9]} 7... O-O {[%clk 0:03:03.9]} 8. Bg5 {[%clk 0:02:45.8]}
8... Be7 {[%clk 0:03:04.3]} 9. Bxf6 {[%clk 0:02:37.3]} 9... Bxf6 {[%clk
0:03:04.6]} 10. Nc3 {[%clk 0:02:37.8]} 10... d6 {[%clk 0:02:59.2]} 11. Qd2
{[%clk 0:02:30.9]} 11... Nd7 {[%clk 0:02:51.7]} 12. Rad1 {[%clk 0:02:21.3]}
12... g6 {[%clk 0:02:45.1]} 13. b3 {[%clk 0:01:56.5]} 13... e5 {[%clk
0:02:45.9]} 14. e3 {[%clk 0:01:40.8]} 14... Bg7 {[%clk 0:02:28.9]} 15. Ne1
{[%clk 0:01:40.2]} 15... Bxg2 {[%clk 0:02:28.8]} 16. Kxg2 {[%clk 0:01:41.5]}
16... exd4 {[%clk 0:02:20.6]} 17. exd4 {[%clk 0:01:41.9]} 17... Re8 {[%clk
0:02:10.8]} 18. Nc2 {[%clk 0:01:40.6]} 18... Qc8 {[%clk 0:01:52.8]} 19. Qd3
{[%clk 0:01:31.8]} 19... Qb7+ {[%clk 0:01:53.7]} 20. Qf3 {[%clk 0:01:32.5]}
20... Qxf3+ {[%clk 0:01:51.7]} 21. Kxf3 {[%clk 0:01:34.4]} 21... Nf6 {[%clk
0:01:42.9]} 22. Rfe1 {[%clk 0:01:21.5]} 22... Kf8 {[%clk 0:01:28.6]} 23. Nb5
{[%clk 0:01:15.6]} 23... Rxe1 {[%clk 0:01:26.5]} 24. Rxe1 {[%clk 0:01:15]} 24...
Ne8 {[%clk 0:01:28.4]} 25. d5 {[%clk 0:01:03.6]} 25... Be5 {[%clk 0:01:09.9]}
26. Kg2 {[%clk 0:00:53]} 26... Rd8 {[%clk 0:01:03.3]} 27. f4 {[%clk 0:00:47.8]}
27... Bb2 {[%clk 0:00:55.5]} 28. Kf3 {[%clk 0:00:46.7]} 28... Rd7 {[%clk
0:00:56]} 29. Na7 {[%clk 0:00:38.5]} 29... h5 {[%clk 0:00:39.5]} 30. Nc6 {[%clk
0:00:38]} 30... Ng7 {[%clk 0:00:35]} 31. h3 {[%clk 0:00:33]} 31... Nf5 {[%clk
0:00:34.2]} 32. g4 {[%clk 0:00:26.4]} 32... hxg4+ {[%clk 0:00:32.3]} 33. hxg4
{[%clk 0:00:27.1]} 33... Ne7 {[%clk 0:00:26.9]} 34. Nxe7 {[%clk 0:00:21.3]}
34... Rxe7 {[%clk 0:00:28.8]} 35. Rxe7 {[%clk 0:00:22.3]} 35... Kxe7 {[%clk
0:00:30.7]} 36. Ke4 {[%clk 0:00:23.8]} 36... Bc3 {[%clk 0:00:26.6]} 37. Kd3
{[%clk 0:00:21.7]} 37... Bb2 {[%clk 0:00:25.4]} 38. Ke4 {[%clk 0:00:20.3]} 38...
Bc3 {[%clk 0:00:26]} 39. Ne3 {[%clk 0:00:20.8]} 39... Bd2 {[%clk 0:00:25.2]} 40.
Nf1 {[%clk 0:00:20.7]} 40... Bc3 {[%clk 0:00:18.9]} 41. Ng3 {[%clk 0:00:21.6]}
41... Bb2 {[%clk 0:00:18.5]} 42. Ne2 {[%clk 0:00:22.2]} 42... Bf6 {[%clk
0:00:18.2]} 43. Kd3 {[%clk 0:00:22.5]} 43... Bb2 {[%clk 0:00:16.6]} 44. Kc2
{[%clk 0:00:23.4]} 44... Bf6 {[%clk 0:00:17.9]} 45. a3 {[%clk 0:00:23.9]} 45...
Kd7 {[%clk 0:00:16.9]} 46. b4 {[%clk 0:00:24.6]} 46... axb4 {[%clk 0:00:18.8]}
47. axb4 {[%clk 0:00:26.1]} 47... Ke7 {[%clk 0:00:20.2]} 48. Kb3 {[%clk
0:00:26.1]} 48... Kd7 {[%clk 0:00:21.5]} 49. Ka4 {[%clk 0:00:27.1]} 49... Bb2
{[%clk 0:00:22.3]} 50. Kb5 {[%clk 0:00:27.8]} 50... Bg7 {[%clk 0:00:14.8]} 51.
Ka6 {[%clk 0:00:28.2]} 51... Kc8 {[%clk 0:00:15.7]} 52. Ka7 {[%clk 0:00:25.1]}
52... Bb2 {[%clk 0:00:16.2]} 53. f5 {[%clk 0:00:22.5]} 53... gxf5 {[%clk
0:00:16.7]} 54. gxf5 {[%clk 0:00:24.4]} 54... Be5 {[%clk 0:00:17.3]} 55. Nc1
{[%clk 0:00:21.6]} 55... Bc3 {[%clk 0:00:16.9]} 56. Nd3 {[%clk 0:00:22.7]} 56...
Bd2 {[%clk 0:00:17.9]} 57. Ka6 {[%clk 0:00:23.2]} 57... Bc3 {[%clk 0:00:17.9]}
58. Kb5 {[%clk 0:00:20.1]} 58... Kd7 {[%clk 0:00:19.4]} 59. Ka4 {[%clk
0:00:20.6]} 59... Bd2 {[%clk 0:00:20]} 60. Kb5 {[%clk 0:00:20.4]} 60... Be3
{[%clk 0:00:19.8]} 61. Ka6 {[%clk 0:00:12.8]} 61... Kc8 {[%clk 0:00:18.8]} 62.
Nb2 {[%clk 0:00:10.1]} 62... Bd2 {[%clk 0:00:19.4]} 63. Nd3 {[%clk 0:00:10.8]}
63... Bc3 {[%clk 0:00:20.5]} 64. b5 {[%clk 0:00:10.7]} 64... Bd4 {[%clk
0:00:18.8]} 65. Ka7 {[%clk 0:00:10.2]} 65... Bc3 {[%clk 0:00:18.7]} 66. Ka8
{[%clk 0:00:11.1]} 66... Bd2 {[%clk 0:00:19.2]} 67. Nf2 {[%clk 0:00:10.7]} 67...
Bc3 {[%clk 0:00:09.2]} 68. Ne4 {[%clk 0:00:10.5]} 68... Bd4 {[%clk 0:00:10]} 69.
Ng5 {[%clk 0:00:10.8]} 69... f6 {[%clk 0:00:11.2]} 70. Nf7 {[%clk 0:00:10.2]}
70... Bc3 {[%clk 0:00:10.7]} 71. Nh8 {[%clk 0:00:10.9]} 71... Bd4 {[%clk
0:00:11]} 72. Ng6 {[%clk 0:00:12.2]} 72... Be5 {[%clk 0:00:09.9]} 73. Ne7+
{[%clk 0:00:12.7]} 73... Kd7 {[%clk 0:00:10.8]} 74. Nc6 {[%clk 0:00:14.1]} 74...
Kc8 {[%clk 0:00:11.9]} 75. Na7+ {[%clk 0:00:14.3]} 75... Kd7 {[%clk 0:00:13.1]}
76. Kb7 {[%clk 0:00:15.6]} 76... Bd4 {[%clk 0:00:13.1]} 77. Nc6 {[%clk
0:00:14.3]} 77... Bc3 {[%clk 0:00:14]} 78. Nb8+ {[%clk 0:00:15.2]} 78... Kd8
{[%clk 0:00:14.5]} 79. Na6 {[%clk 0:00:14.9]} 79... Bd4 {[%clk 0:00:13.1]} 80.
Nxc7 {[%clk 0:00:15.2]} 80... Kd7 {[%clk 0:00:12.5]} 81. Na8 {[%clk 0:00:14.8]}
81... Be3 {[%clk 0:00:11.5]} 82. Nxb6+ {[%clk 0:00:15.9]} 82... Kd8 {[%clk
0:00:12.9]} 83. Na4 {[%clk 0:00:12.6]} 83... Kd7 {[%clk 0:00:12.9]} 84. b6
{[%clk 0:00:11.8]} 84... Bd4 {[%clk 0:00:14.4]} 85. Ka8 {[%clk 0:00:09.1]} 1-0

[Event "*** Titled Tuesday Blitz"]
[Site "Chess.com"]
[Date "2019.11.05"]
[Round "10"]
[White "NikolaMa2000"]
[Black "PNEPaul"]
[Result "1-0"]
[WhiteElo "2025"]
[BlackElo "1739"]
[TimeControl "180+2"]
[EndTime "15:15:10 PST"]
[Termination "NikolaMa2000 won by resignation"]

1. d4 {[%clk 0:03:01.9]} 1... c5 {[%clk 0:03:00]} 2. Nf3 {[%clk 0:02:55.3]} 2...
cxd4 {[%clk 0:02:59.4]} 3. Nxd4 {[%clk 0:02:55.9]} 3... g6 {[%clk 0:02:59.3]} 4.
g3 {[%clk 0:02:56.4]} 4... Bg7 {[%clk 0:02:59.8]} 5. Bg2 {[%clk 0:02:58]} 5...
Nc6 {[%clk 0:02:58.4]} 6. Nb3 {[%clk 0:02:52.9]} 6... Nf6 {[%clk 0:02:57.7]} 7.
O-O {[%clk 0:02:53.6]} 7... O-O {[%clk 0:02:57.9]} 8. Nc3 {[%clk 0:02:51.3]}
8... d6 {[%clk 0:02:58.5]} 9. a4 {[%clk 0:02:39.1]} 9... Bd7 {[%clk 0:02:58.6]}
10. a5 {[%clk 0:02:31.4]} 10... Qc8 {[%clk 0:02:29.3]} 11. Re1 {[%clk
0:02:24.1]} 11... Bh3 {[%clk 0:02:26.9]} 12. Bh1 {[%clk 0:02:19]} 12... Ng4
{[%clk 0:02:27.3]} 13. Nd5 {[%clk 0:02:04.3]} 13... Qf5 {[%clk 0:02:18.2]} 14.
Nf4 {[%clk 0:01:53.4]} 14... e5 {[%clk 0:02:10.2]} 15. Nxh3 {[%clk 0:01:50.6]}
1-0

[Event "*** Titled Tuesday Blitz"]
[Site "Chess.com"]
[Date "2019.11.05"]
[Round "10"]
[White "victormago"]
[Black "nitpicker"]
[Result "1/2-1/2"]
[WhiteElo "2454"]
[BlackElo "2322"]
[TimeControl "180+2"]
[EndTime "15:15:22 PST"]
[Termination "Game drawn by agreement"]

1. d4 {[%clk 0:03:01.9]} 1... Nf6 {[%clk 0:03:00.2]} 2. c4 {[%clk 0:03:02.5]}
2... e6 {[%clk 0:03:00.5]} 3. Nc3 {[%clk 0:03:03]} 3... Bb4 {[%clk 0:03:00.5]}
4. Qc2 {[%clk 0:03:04]} 4... d5 {[%clk 0:02:55]} 5. Nf3 {[%clk 0:03:03.7]} 5...
O-O {[%clk 0:02:52.4]} 6. Bg5 {[%clk 0:03:02.1]} 6... Nbd7 {[%clk 0:02:43.6]} 7.
e3 {[%clk 0:03:02]} 7... c5 {[%clk 0:02:37.7]} 8. dxc5 {[%clk 0:03:00.2]} 8...
Qa5 {[%clk 0:02:31.3]} 9. Bxf6 {[%clk 0:03:00]} 9... Nxf6 {[%clk 0:02:30.4]} 10.
cxd5 {[%clk 0:03:00.9]} 10... Nxd5 {[%clk 0:02:28.3]} 11. Rc1 {[%clk 0:03:01.7]}
11... Qxc5 {[%clk 0:02:26.7]} 12. Bd3 {[%clk 0:02:59.7]} 12... h6 {[%clk
0:02:19.3]} 13. O-O {[%clk 0:02:59.6]} 13... Nxc3 {[%clk 0:02:19.9]} 14. bxc3
{[%clk 0:03:01.5]} 14... Ba3 {[%clk 0:02:20.5]} 15. Rb1 {[%clk 0:03:01.5]} 15...
Rb8 {[%clk 0:02:00.3]} 16. Nd4 {[%clk 0:02:57.8]} 16... Bd7 {[%clk 0:01:52.6]}
17. Nb5 {[%clk 0:02:47.9]} 17... Bxb5 {[%clk 0:01:45.4]} 18. Rxb5 {[%clk
0:02:47.1]} 18... Qe7 {[%clk 0:01:45.9]} 19. Rfb1 {[%clk 0:02:48]} 19... Bc5
{[%clk 0:01:34.5]} 20. a4 {[%clk 0:02:44.2]} 20... b6 {[%clk 0:01:32]} 21. a5
{[%clk 0:02:44.2]} 21... Rbc8 {[%clk 0:01:30]} 22. axb6 {[%clk 0:02:44.5]} 22...
axb6 {[%clk 0:01:30.3]} 23. c4 {[%clk 0:02:45.6]} 23... Rfd8 {[%clk 0:01:29.6]}
24. Bf1 {[%clk 0:02:44.6]} 24... Qf6 {[%clk 0:01:28.7]} 1/2-1/2

[Event "*** Titled Tuesday Blitz"]
[Site "Chess.com"]
[Date "2019.11.05"]
[Round "10"]
[White "StoreySniper"]
[Black "Manukyan_Artak"]
[Result "1-0"]
[WhiteElo "2281"]
[BlackElo "2360"]
[TimeControl "180+2"]
[EndTime "15:16:01 PST"]
[Termination "StoreySniper won by resignation"]

1. d4 {[%clk 0:02:57.7]} 1... Nf6 {[%clk 0:02:59]} 2. c4 {[%clk 0:02:58.3]} 2...
e6 {[%clk 0:03:00.3]} 3. Nf3 {[%clk 0:02:59.4]} 3... b6 {[%clk 0:03:00.8]} 4. g3
{[%clk 0:02:59.7]} 4... Bb7 {[%clk 0:03:02.3]} 5. Bg2 {[%clk 0:03:01.2]} 5... d5
{[%clk 0:03:03.9]} 6. Ne5 {[%clk 0:03:01]} 6... Nbd7 {[%clk 0:03:02.8]} 7. Nc3
{[%clk 0:02:58.5]} 7... Bb4 {[%clk 0:02:55.3]} 8. O-O {[%clk 0:02:54.9]} 8...
O-O {[%clk 0:02:54.4]} 9. Bg5 {[%clk 0:02:54.8]} 9... Bxc3 {[%clk 0:02:52.7]}
10. bxc3 {[%clk 0:02:55.1]} 10... c6 {[%clk 0:02:44.5]} 11. Nxd7 {[%clk
0:02:55.5]} 11... Qxd7 {[%clk 0:02:44.7]} 12. Bxf6 {[%clk 0:02:55]} 12... gxf6
{[%clk 0:02:46.6]} 13. e4 {[%clk 0:02:54.2]} 13... dxc4 {[%clk 0:02:44.9]} 14.
Qg4+ {[%clk 0:02:48.2]} 14... Kh8 {[%clk 0:02:45.7]} 15. Qh4 {[%clk 0:02:50.1]}
15... Kg7 {[%clk 0:02:40.4]} 16. f4 {[%clk 0:02:44.3]} 16... c5 {[%clk
0:02:29.1]} 17. dxc5 {[%clk 0:02:42.8]} 17... bxc5 {[%clk 0:02:29]} 18. Rad1
{[%clk 0:02:41.5]} 18... Qe7 {[%clk 0:02:28.8]} 19. e5 {[%clk 0:02:37.3]} 19...
Bxg2 {[%clk 0:02:26.2]} 20. Kxg2 {[%clk 0:02:30.4]} 20... Rad8 {[%clk
0:02:26.4]} 21. Rxd8 {[%clk 0:02:19.8]} 21... Rxd8 {[%clk 0:02:25.9]} 22. f5
{[%clk 0:02:21]} 22... Qb7+ {[%clk 0:02:00.9]} 23. Kh3 {[%clk 0:02:19.6]} 23...
Rd2 {[%clk 0:01:36.4]} 24. Qxf6+ {[%clk 0:02:12.3]} 24... Kf8 {[%clk 0:01:36.4]}
25. Qh6+ {[%clk 0:02:13]} 25... Ke8 {[%clk 0:01:32.2]} 26. Qxd2 {[%clk
0:02:12.7]} 1-0